Cogmind - Beta 15 X1 @@@ ROGUE MODE // 2024.11.09 @ 19:13:28 Player: Some Pennies Result: Destroyed by MQ-U5Y(R) with Subdweller Beam Cannon Performance ------------- Evolutions (0) 0 Regions Visited (2) 400 Robots Destroyed (17) 85 Value Destroyed (263) 263 Prototype IDs (0) 0 Alien Tech Used (0) 0 Bonus (0) 0 TOTAL SCORE: 748 Bonus ------- None Cogmind --------- Core Integrity 0/250 Matter 112/300 Energy 56/200 System Corruption 0% Temperature Cool (9) Movement Treading (160) Location -10/Subcaves Parts ------- > --- POWER (1) -------- Subdweller Power Source > --- PROPULSION (2) --- Light Treads > --- UTILITY (2) ------ Small Storage Unit Subdweller Optics > --- WEAPON (2) ------- Small Laser Subdweller Laser > --- INVENTORY (8) ---- Ion Engine Disposable Heat Sink Huge Storage Unit Improved Terrain Scanner Seismic Detector Battle Cannon Grenade Launcher Mining Laser Peak State ------------ > --- POWER ------------ Subdweller Power Source > --- PROPULSION ------- Light Treads Light Treads > --- UTILITY ---------- Small Storage Unit Subdweller Optics > --- WEAPON ----------- Small Laser Subdweller Laser > --- INVENTORY -------- Ion Engine Disposable Heat Sink Huge Storage Unit Improved Terrain Scanner Seismic Detector Light Assault Rifle Grenade Launcher Mining Laser [Rating: 11] Favorites ----------- Power Ion Engine Engine Ion Engine Propulsion Light Treads Treads Light Treads Utility Small Storage Unit Device Seismic Detector Storage Small Storage Unit Weapon Small Laser Energy Gun Small Laser Ballistic Gun Light Assault Rifle Launcher Grenade Launcher Build | -11 -10 -10 ------- Run | Yrd Mat Sub Slots Evolved . | . . . Power . | . . . Propulsion . | . . . Utility . | . . . Weapon . | . . . Parts Attached 16 | 8 1 7 Power 2 | 1 . 1 Engine 2 | 1 . 1 Core . | . . . Reactor . | . . . Propulsion 2 | 2 . . Treads 2 | 2 . . Leg . | . . . Wheel . | . . . Hover . | . . . Flight . | . . . Utility 7 | 3 1 3 Device 6 | 2 1 3 Storage 1 | 1 . . Processor . | . . . Hackware . | . . . Protection . | . . . Artifact . | . . . Weapon 5 | 2 . 3 Energy Gun 3 | 1 . 2 Energy Cannon . | . . . Ballistic Gun 1 | 1 . . Ballistic Cannon . | . . . Launcher 1 | . . 1 Special Weapon . | . . . Impact Weapon . | . . . Slashing Weapon . | . . . Piercing Weapon . | . . . Special Melee Weapon . | . . . Unidentified Prototypes . | . . . Parts Lost 4 | . . 4 Power . | . . . Propulsion 1 | . . 1 Utility 2 | . . 2 Weapon 1 | . . 1 Highest Loss Streak 3 | . . 3 To Critical Strikes . | . . . Average Backups 6 | 2 6 7 Power . | . 1 1 Propulsion . | . . . Utility 2 | . 2 3 Weapon 2 | 1 2 2 Tool/Special . | . . . Unused Backups 6 | . 1 5 Power 1 | . . 1 Propulsion . | . . . Utility 3 | . 1 2 Weapon 2 | . . 2 Tool/Special . | . . . Average Slot Usage (%) 99 | . 100 98 Engine 14 | . 14 14 Treads 27 | . 28 27 Device 13 | . 14 13 Storage 14 | . 14 14 Energy Gun 15 | . 14 16 Ballistic Gun 10 | . 14 9 Launcher 1 | . . 1 Peak Build Rating 11 | 9 8 11 Average Rating 8 | 6 7 9 On Entrance 5 | . 7 8 Naked Turns . | . . . Heaviest Build 17 | 13 13 17 Greatest Support 40 | 40 40 40 Greatest Overweight (x) 3 | 3 . . Average Overweight (x) . | . . . Largest Inventory Capacity 8 | 8 8 8 Average Capacity 7 | 7 8 8 Most Carried 8 | 6 8 8 Average Carried 6 | 2 6 7 Final Capacity 8 | 8 8 8 Final Carried 8 | 5 8 8 Class Distribution -------------------- 100% | Mutant Dominant Class ---------------- Mutant | -10/Materials Mutant | -10/Subcaves Resources | -11 -10 -10 ----------- Run | Yrd Mat Sub Matter Collected 501 | 307 . 194 Remotely . | . . . Salvage Created 441 | 236 . 205 Parts 36 | 22 . 14 Haulers Intercepted . | . . . Recyclers Shooed . | . . . Parts Field Recycled . | . . . Retrieved Matter . | . . . Parts Self-Destructed 4 | . . 4 Prevented . | . . . Kills | -11 -10 -10 ------- Run | Yrd Mat Sub Combat Hostiles Destroyed 7 | . . 7 Guns 4 | . . 4 AOE 3 | . . 3 Classes Destroyed 7 | 3 . 4 Worker 2 | 2 . . Tunneler 5 | 5 . . Recycler 1 | 1 . . Turret 2 | . . 2 Swarmer 4 | . . 4 Artisan 1 | . . 1 Subdweller 3 | . . 3 Best Kill Streak 4 | 3 . 4 Combat Bots Only 4 | . . 4 Max Kills in Single Turn 2 | 1 . 2 Gunslinging . | . . . Exploded 2 | . . 2 Melee . | . . . Uniques/NPCs Destroyed . | . . . Combat | -11 -10 -10 -------- Run | Yrd Mat Sub Hostile Shots Fired 85 | . . 85 Missed 31 | . . 31 Damage Taken 853 | . . 853 Core 273 | . . 273 Absorbed by Shields . | . . . Core Remaining (%) 100 | 100 . . Volleys Fired 87 | 27 . 60 Largest 2 | 2 . 2 Hottest 100 | 60 . 100 Shots Fired 143 | 54 . 89 Gun 118 | 54 . 64 Cannon . | . . . Launcher 25 | . . 25 Special . | . . . Kinetic 39 | 27 . 12 Thermal 69 | 27 . 42 Explosive 25 | . . 25 Electromagnetic 10 | . . 10 Robot Hit Streak 16 | 7 . 16 Robot Miss Streak 3 | 3 . 2 Penetration Max . | . . . Secondary Targets 1 | . . 1 Max Gunslinging Chain 1 | . . 1 Shots Hit Robots 86 | 32 . 54 Core Hits 36 | 12 . 24 Critical Kills . | . . . Critical Parts Destroyed . | . . . Critical Strikes . | . . . Melee Attacks . | . . . Impact . | . . . Slashing . | . . . Piercing . | . . . Sneak Attacks . | . . . Combat Hostiles . | . . . Follow-up Attacks . | . . . Damage Inflicted 1252 | 304 . 948 Guns 995 | 304 . 691 Cannons . | . . . Explosions 257 | . . 257 Melee . | . . . Ramming . | . . . Kinetic 212 | 146 . 66 Thermal 670 | 158 . 512 Explosive 257 | . . 257 Electromagnetic 113 | . . 113 Impact . | . . . Slashing . | . . . Piercing . | . . . Highest Corruption . | . . . Average Corruption . | . . . Corruption Purged . | . . . Corruption Blocked . | . . . Overload Shots . | . . . Overflow Damage . | . . . Projectiles . | . . . Explosions . | . . . Melee . | . . . Knockbacks . | . . . Impact . | . . . Kinetic . | . . . Secondary . | . . . Self-Inflicted Damage 30 | . . 30 Shots 1 | . . 1 Rammed . | . . . Targets Rammed . | . . . Kicked . | . . . Crushed . | . . . Highest Temperature 40 | 40 . 5 Average Temperature 19 | 20 . 3 Received Heat Transfer 243 | . . 243 Siege Activations . | . . . Martial Activations . | . . . Shielding Activations . | . . . Robots Disrupted . | . . . Combat Hostiles . | . . . Robots Corrupted . | . . . Combat Hostiles . | . . . Parts Fried . | . . . Impact Corruptions . | . . . Robots Melted . | . . . Combat Hostiles . | . . . Parts Melted 1 | . . 1 Heat Transferred 1200 | 350 . 850 Parts Sabotaged . | . . . Parts Stolen . | . . . Parts Stripped . | . . . Power Chain Reactions . | . . . Alert | -11 -10 -10 ------- Run | Yrd Mat Sub Maximum Alert Level . | . . . Low Security (%) 100 | 100 100 . Level 1 . | . . . Level 2 . | . . . Level 3 . | . . . Level 4 . | . . . Level 5 . | . . . High Security . | . . . Max Security . | . . . Peak Influence 10 | 10 4 . Initial 3 | . 3 . Average 1 | 1 . . Influence Increases 1244 | 40 4 1200 Destroy 0b10 Robot/C 120 | . . 120 Destroy 0b10 Robot/NC 40 | 40 . . Successful Hack 4 | . 4 . Lose Combat Pursuer 1080 | . . 1080 Influence Decreases 312 | 35 7 270 Time Decay 272 | 35 7 230 Lost Part 40 | . . 40 Squads Dispatched 1 | . 1 . Investigation . | . . . Extermination . | . . . Reinforcement 1 | . 1 . Assault . | . . . Garrison . | . . . Intercept . | . . . Searches Triggered . | . . . Construction Impeded . | . . . Haulers Reinforced . | . . . Active Scanning Responses . | . . . Cargo Convoy Interrupts . | . . . Stealth | -11 -10 -10 --------- Run | Yrd Mat Sub Distress Signals . | . . . Communications Jammed . | . . . Distress Signals . | . . . Times Spotted 31 | . 1 30 Peak Tracking Total 3 | . 1 3 Tactical Retreats 7 | . . 7 Traps | -11 -10 -10 ------- Run | Yrd Mat Sub Traps Triggered . | . . . Indirectly . | . . . Trap Hack Attempts . | . . . Triggered . | . . . Disarmed . | . . . Reprogrammed . | . . . Reused . | . . . Traps Extracted . | . . . Installed . | . . . Triggered . | . . . Machines | -11 -10 -10 ---------- Run | Yrd Mat Sub Machines Disabled 3 | . . 3 Max in Single Turn 1 | . . 1 Machines Repaired . | . . . Machines Dismantled . | . . . Machines Sabotaged . | . . . Overloaded Fab Kills . | . . . Hacking | -11 -10 -10 --------- Run | Yrd Mat Sub Machines Accessed 2 | . 2 . Terminals 2 | . 2 . Fabricators . | . . . Repair Stations . | . . . Recycling Units . | . . . Scanalyzers . | . . . Garrison Access . | . . . Total Hacks 4 | . 4 . Successful 1 | . 1 . Failed 3 | . 3 . Catastrophic . | . . . Database Lockouts . | . . . Manual 4 | . 4 . Terminals 4 | . 4 . Fabricators . | . . . Repair Stations . | . . . Recycling Units . | . . . Scanalyzers . | . . . Garrison Access . | . . . Terminal Hacks . | . . . Fabricator Hacks . | . . . Repair Station Hacks . | . . . Recycling Unit Hacks . | . . . Scanalyzer . | . . . Garrison Access Hacks . | . . . Unauthorized Hacks 1 | . 1 . Terminals 1 | . 1 . Skim 1 | . 1 . Fabricators . | . . . Repair Stations . | . . . Recycling Units . | . . . Scanalyzers . | . . . Garrison Access . | . . . Data Cores Recovered . | . . . Used . | . . . Hacking Detections 2 | . 2 . Full Trace Events . | . . . Feedback Events . | . . . Feedback Blocked . | . . . Robot Schematics Acquired . | . . . Robots Built . | . . . Authchips . | . . . Time . | . . . Total Robot Build Rating . | . . . Part Schematics Acquired . | . . . Parts Built . | . . . Authchips . | . . . Time . | . . . Total Part Build Rating . | . . . Parts Repaired . | . . . Time . | . . . Parts Recycled . | . . . Recycled Matter . | . . . Retrieved Matter . | . . . Retrieved Components . | . . . Parts Scanalyzed . | . . . Part Schematics Acquired . | . . . Parts Damaged . | . . . Bothacking | -11 -10 -10 ------------ Run | Yrd Mat Sub Used RIF Installer . | . . . Robots Hacked . | . . . Non-combat . | . . . Combat . | . . . Robot Hacks Applied . | . . . Relay Couplers Released . | . . . Fabnet Peak Effective % . | . . . Robots Rewired . | . . . Allies Hacked . | . . . Hacks Repelled . | . . . Allies | -11 -10 -10 -------- Run | Yrd Mat Sub Total Allies . | . . . Largest Group . | . . . Highest-Rated Group . | . . . Highest-Rated Ally . | . . . Total Orders . | . . . Ally Attacks . | . . . Total Damage . | . . . Kills . | . . . Allies Corrupted . | . . . Allies Melted . | . . . Intel | -11 -10 -10 ------- Run | Yrd Mat Sub Active Infowar (turns) 825 | 139 228 458 Optics 240 | . . 240 Terrain 72 | 72 . . Seismic 513 | 67 228 218 Robot Analysis Total . | . . . Derelict Logs Recovered 1 | . . 1 Drone Launches . | . . . Drone Recoveries . | . . . Exploration | -11 -10 -10 ------------- Run | Yrd Mat Sub Turns Passed 936 | 213 228 495 Spaces Moved 409 | 75 140 194 Core 3 | 3 . . Treads 406 | 72 140 194 Legs . | . . . Wheels . | . . . Hover . | . . . Flight . | . . . Fastest Speed 50 | 50 160 160 Average Speed 159 | 158 160 160 Slowest Speed 200 | 200 160 160 Overloaded Moves . | . . . Propulsion Burnouts . | . . . Robots Hopped . | . . . Cave-ins Triggered . | . . . Exploration Rate (%) 17 | 5 30 18 Regions Visited 2 Branch Regions 1 Pre-discovered Areas 1 | . . 1 Known Exits Taken . | . . . Unknown Exits Taken 2 | 1 1 . Scrap Searched . | . . . Spaces Dug 5 | . . 5 Terrain Destroyed 49 | . . 49 Melee . | . . . Projectile . | . . . AOE 49 | . . 49 Terrain Rammed . | . . . Walls Destroyed . | . . . Machines Disabled . | . . . Actions | -11 -10 -10 --------- Run | Yrd Mat Sub Total 552 | 118 144 290 Wait 18 | . . 18 Move 407 | 74 139 194 Hop . | . . . Pick Up 13 | 7 3 3 Fast Attach 8 | 7 . 1 Attach 2 | . . 2 Detach . | . . . Swap 12 | 1 1 10 Drop 5 | 2 1 2 Fire 87 | 27 . 60 Melee . | . . . Ram . | . . . Kick . | . . . Crush . | . . . Escape Stasis . | . . . Rewire . | . . . Trap . | . . . Miscellaneous . | . . . Route ------- -11/Scrapyard -10/Materials (discovered 3 exits: [*Mat] / [*Min] / [*Sub]) -10/Subcaves (discovered 1 exit: [*Rec]) History --------- Turn | Location | Event 16 | -11/Scrapyard | Discovered new exit (range 15) 214 | -11/Scrapyard | Entered Materials 316 | -10/Materials | Build established: Mutant 381 | -10/Materials | Discovered new exit (range 9) 391 | -10/Materials | Discovered new exit (range 8) 432 | -10/Materials | Discovered new exit (range 7) 442 | -10/Materials | Entered Subcaves 442 | -10/Subcaves | Discovered new exit (range 10) 480 | -10/Subcaves | Ambushed by Subdweller buried in earth 589 | -10/Subcaves | Learned location of Storage (-9) 671 | -10/Subcaves | Lost 3 parts (2u1w) 899 | -10/Subcaves | Ambushed by angry Subdweller bent on revenge 908 | -10/Subcaves | Core integrity fell below 50% 931 | -10/Subcaves | Core integrity fell below 20% 937 | -10/Subcaves | Destroyed by MQ-U5Y(R) with Subdweller Beam Cannon Last Messages --------------- 00672_ Acquired Sub. Optics. 00675_ Subatomizers dissect the Sub. Monowheel. 00680_ Dropped Ion Engine. 00802_ Acquired 6 matter. 00810_ Acquired 8 matter. 00814_ Acquired 6 matter. 00837_ Dropped Lgt. Assault Rifle. 00837_ Acquired Battle Cannon. 00857_ GJ-ICK(u) tweaks Twisted Machinery. 00871_ GJ-ICK(u) cries out in pain. 00871_ GJ-ICK(u) destroyed. 00874_ Acquired 14 matter. 00899_ MQ-U5Y(R) angrily emerges from the Twisted Machinery. 00899_ MQ-U5Y(R): "OHNO!" 00907_ Sub. Monowheel melted. 00907_ 7H-LD2(R) destroyed. 00907_ Switching to secondary target: MQ-U5Y(R). 00916_ Lgt. Treads destroyed. 00936_ Destroyed Scrap Shield. Map ----- +----------------------------------------------------+ | ?????????????????????????????????????????????????? | | ?????????????????????????????????????????????????? | | ?????????????????????????????????????????????????? | | ?????????????????????????????????????????????????? | | ??????????????????????????####???????????????????? | | ??????????????????????????# "#???????????????????? | | ?????????????????????????? "##??????????????????? | | ??????????????????????????? "#???????????#??????? | | ???????????????????????????"""##?????????? ##????? | | ???????????????????????????# " ###?????### ##???? | | ???????????????????????????#" "" ##??## # #???? | | ??????????????????????????## " #?? #???? | | ??????????????????????????#""""" ????# ???? | | ???????????????????????????#=" #????## ## #???? | | ???????????##?????????????## #???## ? ##?## | | ???????????# ???????????## = #??## ## ??# | | ????????????# #?????????## ##?# ## #?? | | ???????????## ##??????## ##?# # ??? | | ???????????# ????## ### ## #???# | | ???????????# #??## ## ## #???# | | ?????????????? #?#"""" ## ##??# | | ????????????????# ## "" ## ##?# | | ???????????????## R ### ### | | ???????????????# ### ## | | ???????????????# ## ## | | ???????????????# @ | | ??????????????## | | ?????????????## ## | | ?????????????# ;# ### | | ?????????????# ## ;# ### #?## | | ?????????????# ?## #### #?# | | ???????????????## #?# ## | | ???????????????# & [ ### ## | | ???????????????# &%## ## # | | ???????????????# [#?## #### ## ## | | ???????????????# ??## ##??## ## ## | | ???????????????# ???# ##???# ## | | ??????????????? ????## ##??# | | ??????????????#??????##### #??# ### | | ?????????????????????????## ##?# ## ##?## | | ??????????????????????????## ### ##?##???# | | ???????????????????????????## ## ##??????# | | ????????????????????????????# #??????### | | ????????????????????????????# ##????????# | | ????????????????????????????##### ##?????????## | | ?????????????????????????######## #####??????## | | ????????????????????????## ## ## ### ##??????# | | ???????????????????????### ### ###????# | | ????????????????????#### <# # #????# | | ????????????????????#""" #?#### | +----------------------------------------------------+ Best States ------------- Heat Dissipation 25 Coolant Potential 50 Energy Generation 15 Energy Capacity 250 Matter Stores 300 Matter Capacity 300 Sight Range 21 Terrain Scan Range 16 Terrain Scan Density 10 Evasion (%) 40 Recoil Reduction 2 Item Schematics ----------------- None Robot Schematics ------------------ None Fabricated ------------ Nothing Repaired ---------- Nothing Alien Tech Used ----------------- None Achievements -------------- None Challenges ------------ None Game ------ Seed CoolantMachineRipper Manual? 0 Play Time 00:11:01 Cumulative 445.0 hours Start 2024.11.09 @ 19:03:41 End 2024.11.09 @ 19:13:28 Sessions 1 Manual Loads 0 Difficulty Rogue Special Mode None Game No. 299 Rogue 294 Adventurer 5 Explorer 0 Win Type - Total 11 Types 5/0/5/0/0/0/1/0/0 Lore% 79 Gallery% 89 Achievement% 75 Wizard Run 0 Options --------- Layout 2 ASCII 0 Keyboard 0 Movement Mouse Keybinds 0 Fullscreen 2 Font 24/Smallcaps Map View 50x44 Zoom Use 0% Tactical HUD 1 Map Filters NONE Filters NONE Steam 1 RUN: 87595547-b92c-497f-aff0-874b40f3892e